[Event "Late-Titled-Tuesday-Blitz-April-02-2024"]
[Site "Chess.com"]
[Date "2024.04.02"]
[Round "3"]
[White "SultaiC"]
[Black "Kiborg95"]
[Result "0-1"]
[WhiteElo "2512"]
[BlackElo "2852"]
[TimeControl "180+1"]
[EndTime "14:28:47 PDT"]
[Termination "Kiborg95 won by checkmate"]

1. e4 {[%clk 0:03:00.9]} 1... d6 {[%clk 0:02:57.7]} 2. Nf3 {[%clk 0:02:53.5]}
2... Nf6 {[%clk 0:02:57.1]} 3. c3 {[%clk 0:02:54.4]} 3... Nbd7 {[%clk
0:02:53.7]} 4. d3 {[%clk 0:02:54.5]} 4... g6 {[%clk 0:02:52.8]} 5. Be2 {[%clk
0:02:54.6]} 5... Bg7 {[%clk 0:02:53.2]} 6. O-O {[%clk 0:02:53.9]} 6... O-O
{[%clk 0:02:53.7]} 7. h3 {[%clk 0:02:54.1]} 7... a5 {[%clk 0:02:54]} 8. Be3
{[%clk 0:02:54.8]} 8... a4 {[%clk 0:02:50.2]} 9. a3 {[%clk 0:02:54.5]} 9... b6
{[%clk 0:02:45.6]} 10. Nbd2 {[%clk 0:02:54.5]} 10... Bb7 {[%clk 0:02:46.2]} 11.
Qc2 {[%clk 0:02:54.5]} 11... e5 {[%clk 0:02:41.9]} 12. Rfe1 {[%clk 0:02:54.2]}
12... Re8 {[%clk 0:02:41.5]} 13. Rad1 {[%clk 0:02:53.7]} 13... h6 {[%clk
0:02:40.3]} 14. Nf1 {[%clk 0:02:49.9]} 14... d5 {[%clk 0:02:38.6]} 15. Ng3
{[%clk 0:02:47.3]} 15... c5 {[%clk 0:02:38]} 16. d4 {[%clk 0:02:25.8]} 16...
exd4 {[%clk 0:02:16.6]} 17. cxd4 {[%clk 0:02:26.7]} 17... dxe4 {[%clk
0:02:16.3]} 18. Ne5 {[%clk 0:02:24.6]} 18... Nxe5 {[%clk 0:01:59.6]} 19. dxe5
{[%clk 0:02:25.5]} 19... Nd5 {[%clk 0:02:00.3]} 20. Qc1 {[%clk 0:02:13]} 20...
Qh4 {[%clk 0:01:53.7]} 21. Bb5 {[%clk 0:01:46.5]} 21... Rxe5 {[%clk 0:01:51.8]}
22. Bd2 {[%clk 0:01:45.8]} 22... e3 {[%clk 0:01:49]} 23. Bxe3 {[%clk 0:01:37.9]}
23... Nxe3 {[%clk 0:01:48]} 24. Rxe3 {[%clk 0:01:38.2]} 24... Rxe3 {[%clk
0:01:47.2]} 25. Qxe3 {[%clk 0:01:38.2]} 25... Bxb2 {[%clk 0:01:43.6]} 26. Rd7
{[%clk 0:01:33.2]} 26... Bd4 {[%clk 0:01:32.9]} 27. Qd3 {[%clk 0:01:30.2]} 27...
Bc8 {[%clk 0:01:23.8]} 28. Rxf7 {[%clk 0:01:06.4]} 28... Kxf7 {[%clk 0:01:11.6]}
29. Qf3+ {[%clk 0:01:05.7]} 29... Qf6 {[%clk 0:01:12.1]} 30. Qd5+ {[%clk
0:00:49.5]} 30... Kg7 {[%clk 0:01:04]} 31. Ne4 {[%clk 0:00:47.4]} 31... Bxf2+
{[%clk 0:00:49.7]} 32. Nxf2 {[%clk 0:00:32.2]} 32... Ra7 {[%clk 0:00:49.4]} 33.
Bc4 {[%clk 0:00:17.4]} 33... Rf7 {[%clk 0:00:42.4]} 34. Ne4 {[%clk 0:00:11.7]}
34... Be6 {[%clk 0:00:10.9]} 35. Nxf6 {[%clk 0:00:10.5]} 35... Bxd5 {[%clk
0:00:11.5]} 36. Nxd5 {[%clk 0:00:11.2]} 36... Rb7 {[%clk 0:00:08.2]} 37. Nc3
{[%clk 0:00:11.5]} 37... Ra7 {[%clk 0:00:07.5]} 38. Bb5 {[%clk 0:00:12]} 38...
Kf6 {[%clk 0:00:06.7]} 39. Nd5+ {[%clk 0:00:12.2]} 39... Ke5 {[%clk 0:00:04.1]}
40. Nxb6 {[%clk 0:00:11.1]} 40... Rb7 {[%clk 0:00:04.7]} 41. Nd7+ {[%clk
0:00:09.7]} 41... Kd4 {[%clk 0:00:05.1]} 42. Bxa4 {[%clk 0:00:09.6]} 42... Ra7
{[%clk 0:00:04.5]} 43. Nb6 {[%clk 0:00:09.1]} 43... Ra6 {[%clk 0:00:04.4]} 44.
Bc2 {[%clk 0:00:07.7]} 44... Rxb6 {[%clk 0:00:04.9]} 45. a4 {[%clk 0:00:08.1]}
45... Rb2 {[%clk 0:00:05.6]} 46. Bxg6 {[%clk 0:00:07.4]} 46... c4 {[%clk
0:00:06.1]} 47. a5 {[%clk 0:00:08.2]} 47... Ra2 {[%clk 0:00:06.3]} 48. a6 {[%clk
0:00:09.1]} 48... Rxa6 {[%clk 0:00:06.8]} 49. Bc2 {[%clk 0:00:09.7]} 49... c3
{[%clk 0:00:07.1]} 50. Kh2 {[%clk 0:00:10.3]} 50... Ra2 {[%clk 0:00:07.6]} 51.
Bb3 {[%clk 0:00:11.1]} 51... Rb2 {[%clk 0:00:08.1]} 52. Bd1 {[%clk 0:00:11.4]}
52... Ke3 {[%clk 0:00:08.7]} 53. Bc2 {[%clk 0:00:12.2]} 53... Rxc2 {[%clk
0:00:08.5]} 54. h4 {[%clk 0:00:12.9]} 54... Re2 {[%clk 0:00:09]} 55. h5 {[%clk
0:00:13.8]} 55... c2 {[%clk 0:00:09.8]} 56. Kg3 {[%clk 0:00:14.4]} 56... c1=Q
{[%clk 0:00:10.5]} 57. Kh4 {[%clk 0:00:14.9]} 57... Qh1+ {[%clk 0:00:10.1]} 58.
Kg4 {[%clk 0:00:15.6]} 58... Qxg2+ {[%clk 0:00:10.7]} 59. Kf5 {[%clk 0:00:16.5]}
59... Qg5+ {[%clk 0:00:11.2]} 60. Ke6 {[%clk 0:00:16.9]} 60... Qxh5 {[%clk
0:00:10.5]} 61. Ke7 {[%clk 0:00:16.9]} 61... Qg6 {[%clk 0:00:10.6]} 62. Kf8
{[%clk 0:00:17.8]} 62... Rf2+ {[%clk 0:00:10.7]} 63. Ke7 {[%clk 0:00:18.7]}
63... Rf7+ {[%clk 0:00:11]} 64. Kd8 {[%clk 0:00:19.6]} 64... Qg7 {[%clk
0:00:09.4]} 65. Ke8 {[%clk 0:00:18.8]} 65... h5 {[%clk 0:00:09.8]} 66. Kd8
{[%clk 0:00:15.8]} 66... h4 {[%clk 0:00:10.7]} 67. Kc8 {[%clk 0:00:16.4]} 67...
h3 {[%clk 0:00:11.2]} 68. Kb8 {[%clk 0:00:17.3]} 68... h2 {[%clk 0:00:11.5]} 69.
Kc8 {[%clk 0:00:18]} 69... Ke4 {[%clk 0:00:12.1]} 70. Kb8 {[%clk 0:00:18.7]}
70... Kd5 {[%clk 0:00:12.7]} 71. Ka8 {[%clk 0:00:19.5]} 71... Kc6 {[%clk
0:00:13.3]} 72. Kb8 {[%clk 0:00:20.4]} 72... Kb6 {[%clk 0:00:13.9]} 73. Ka8
{[%clk 0:00:21.3]} 73... Ka6 {[%clk 0:00:14.2]} 74. Kb8 {[%clk 0:00:22.2]} 74...
h1=Q {[%clk 0:00:14]} 75. Kc8 {[%clk 0:00:22.6]} 75... Qb7+ {[%clk 0:00:13.9]}
76. Kd8 {[%clk 0:00:23.5]} 76... Rd7+ {[%clk 0:00:14.2]} 77. Ke8 {[%clk
0:00:24.4]} 77... Qg8# {[%clk 0:00:02.3]} 0-1

[Event "Late-Titled-Tuesday-Blitz-April-02-2024"]
[Site "Chess.com"]
[Date "2024.04.02"]
[Round "3"]
[White "Carlitus2004"]
[Black "gorgeous1083"]
[Result "0-1"]
[WhiteElo "2455"]
[BlackElo "2251"]
[TimeControl "180+1"]
[EndTime "14:28:48 PDT"]
[Termination "gorgeous1083 won on time"]

1. e4 {[%clk 0:02:00.5]} 1... e6 {[%clk 0:02:59.5]} 2. d4 {[%clk 0:01:52]} 2...
d5 {[%clk 0:03:00]} 3. exd5 {[%clk 0:01:52.1]} 3... exd5 {[%clk 0:03:00]} 4. h3
{[%clk 0:01:52.7]} 4... Nf6 {[%clk 0:03:00.1]} 5. Nf3 {[%clk 0:01:52.5]} 5... h6
{[%clk 0:02:59.4]} 6. Bd3 {[%clk 0:01:48.1]} 6... Bd6 {[%clk 0:02:58.7]} 7. O-O
{[%clk 0:01:48.6]} 7... O-O {[%clk 0:02:58.5]} 8. c4 {[%clk 0:01:47.3]} 8... c6
{[%clk 0:02:57.6]} 9. c5 {[%clk 0:01:47.1]} 9... Bc7 {[%clk 0:02:57.2]} 10. Nc3
{[%clk 0:01:47.8]} 10... Be6 {[%clk 0:02:54.7]} 11. Be3 {[%clk 0:01:46.9]} 11...
Nbd7 {[%clk 0:02:54.8]} 12. b4 {[%clk 0:01:45.1]} 12... a6 {[%clk 0:02:54.4]}
13. a4 {[%clk 0:01:45]} 13... Qe7 {[%clk 0:02:51.7]} 14. Qc2 {[%clk 0:01:43.7]}
14... Rfe8 {[%clk 0:02:46.8]} 15. b5 {[%clk 0:01:42.4]} 15... axb5 {[%clk
0:02:46.4]} 16. axb5 {[%clk 0:01:43.3]} 16... Rec8 {[%clk 0:02:44.4]} 17. Nd2
{[%clk 0:01:30.5]} 17... Nf8 {[%clk 0:02:34.7]} 18. Nb3 {[%clk 0:01:26.8]} 18...
Qd7 {[%clk 0:02:16.8]} 19. b6 {[%clk 0:01:03.3]} 19... Bd8 {[%clk 0:02:15.2]}
20. Bf4 {[%clk 0:01:00.4]} 20... Nh5 {[%clk 0:02:06]} 21. Be5 {[%clk 0:00:51.6]}
21... Bf6 {[%clk 0:01:59.9]} 22. Bxf6 {[%clk 0:00:51.3]} 22... Nxf6 {[%clk
0:01:59.2]} 23. Nd2 {[%clk 0:00:44.6]} 23... Bxh3 {[%clk 0:01:55.8]} 24. gxh3
{[%clk 0:00:43.5]} 24... Qxh3 {[%clk 0:01:56.3]} 25. Bf5 {[%clk 0:00:42.8]}
25... Ng4 {[%clk 0:01:53]} 26. Nf3 {[%clk 0:00:21.9]} 26... Qxf3 {[%clk
0:01:46.2]} 27. Bxc8 {[%clk 0:00:21.8]} 27... Rxc8 {[%clk 0:01:44.5]} 28. Qe2
{[%clk 0:00:19]} 28... Qh3 {[%clk 0:01:43.7]} 29. f3 {[%clk 0:00:19.7]} 29...
Re8 {[%clk 0:01:38.6]} 30. Qg2 {[%clk 0:00:18.4]} 30... Qxg2+ {[%clk 0:01:36.9]}
31. Kxg2 {[%clk 0:00:19.3]} 31... Ne3+ {[%clk 0:01:37.4]} 32. Kf2 {[%clk
0:00:20]} 32... Nxf1 {[%clk 0:01:37.4]} 33. Kxf1 {[%clk 0:00:19.5]} 33... Re3
{[%clk 0:01:37.7]} 34. Ne2 {[%clk 0:00:16.4]} 34... Rxf3+ {[%clk 0:01:37.5]} 35.
Kg2 {[%clk 0:00:17.1]} 35... Re3 {[%clk 0:01:36.6]} 36. Kf2 {[%clk 0:00:17.7]}
36... Re7 {[%clk 0:01:36.4]} 37. Ra7 {[%clk 0:00:17.8]} 37... Ne6 {[%clk
0:01:36.7]} 38. Ke3 {[%clk 0:00:07.4]} 38... Nxc5+ {[%clk 0:01:34.3]} 39. Kd2
{[%clk 0:00:07]} 39... Ne6 {[%clk 0:01:33.1]} 40. Kd3 {[%clk 0:00:05.1]} 40...
h5 {[%clk 0:01:32.4]} 41. Nc3 {[%clk 0:00:04.5]} 41... g5 {[%clk 0:01:29.2]} 42.
Na4 {[%clk 0:00:03.6]} 42... Nd8 {[%clk 0:01:27]} 43. Nc5 {[%clk 0:00:03.6]}
43... h4 {[%clk 0:01:26.2]} 44. Ra8 {[%clk 0:00:03.7]} 44... Re8 {[%clk
0:01:24.7]} 45. Nxb7 {[%clk 0:00:04]} 45... h3 {[%clk 0:01:19.2]} 46. Rxd8
{[%clk 0:00:03.4]} 46... Rxd8 {[%clk 0:01:18]} 47. Nxd8 {[%clk 0:00:04.3]} 47...
h2 {[%clk 0:01:18.3]} 48. b7 {[%clk 0:00:04.6]} 48... h1=Q {[%clk 0:01:17.5]}
49. b8=Q {[%clk 0:00:05.5]} 49... Qe4+ {[%clk 0:01:11]} 50. Kc3 {[%clk 0:00:06]}
50... Qe3+ {[%clk 0:01:08.8]} 51. Kc2 {[%clk 0:00:06.7]} 51... Qe2+ {[%clk
0:01:05.5]} 52. Kc3 {[%clk 0:00:06.4]} 52... Qc4+ {[%clk 0:01:04.7]} 53. Kb2
{[%clk 0:00:05.4]} 53... Qxd4+ {[%clk 0:01:04.8]} 54. Kb3 {[%clk 0:00:06.2]}
54... Qc4+ {[%clk 0:01:03.6]} 55. Ka3 {[%clk 0:00:03.8]} 55... Qc3+ {[%clk
0:00:56.6]} 56. Ka2 {[%clk 0:00:02.3]} 56... c5 {[%clk 0:00:49.1]} 57. Ne6+
{[%clk 0:00:02.1]} 57... Kh7 {[%clk 0:00:45.8]} 58. Nxg5+ {[%clk 0:00:03]} 58...
Kg7 {[%clk 0:00:41.8]} 59. Ne6+ {[%clk 0:00:01.5]} 59... fxe6 {[%clk 0:00:41.2]}
60. Qc7+ {[%clk 0:00:02]} 60... Kf6 {[%clk 0:00:40.6]} 61. Qd8+ {[%clk
0:00:01.9]} 61... Kf5 {[%clk 0:00:39.4]} 62. Qf8+ {[%clk 0:00:01.8]} 62... Qf6
{[%clk 0:00:37.6]} 63. Qg8 {[%clk 0:00:01.3]} 63... c4 {[%clk 0:00:35.8]} 64.
Qg2 {[%clk 0:00:01.9]} 64... Qd4 {[%clk 0:00:34.1]} 65. Qf3+ {[%clk 0:00:01.7]}
65... Qf4 {[%clk 0:00:33.7]} 66. Qh5+ {[%clk 0:00:02.4]} 66... Ke4 {[%clk
0:00:32]} 67. Qg6+ {[%clk 0:00:01.9]} 67... Qf5 {[%clk 0:00:31.7]} 68. Qg2+
{[%clk 0:00:02.6]} 68... Kd4 {[%clk 0:00:30.5]} 69. Qg1+ {[%clk 0:00:03.2]}
69... Kc3 {[%clk 0:00:29.1]} 70. Qe1+ {[%clk 0:00:02.1]} 70... Kd4 {[%clk
0:00:26.2]} 71. Qd2+ {[%clk 0:00:01.8]} 71... Qd3 {[%clk 0:00:26]} 72. Qf4+
{[%clk 0:00:02.2]} 72... Kc3 {[%clk 0:00:22.3]} 0-1

[Event "Late-Titled-Tuesday-Blitz-April-02-2024"]
[Site "Chess.com"]
[Date "2024.04.02"]
[Round "3"]
[White "biostatistician"]
[Black "MikaelyanArman"]
[Result "1-0"]
[WhiteElo "2542"]
[BlackElo "2810"]
[TimeControl "180+1"]
[EndTime "14:28:51 PDT"]
[Termination "biostatistician won on time"]

1. d4 {[%clk 0:03:00.2]} 1... Nf6 {[%clk 0:02:47.5]} 2. Nf3 {[%clk 0:02:59.8]}
2... g6 {[%clk 0:02:44.2]} 3. c4 {[%clk 0:02:59.3]} 3... Bg7 {[%clk 0:02:44.8]}
4. Nc3 {[%clk 0:02:58.9]} 4... O-O {[%clk 0:02:44.9]} 5. e4 {[%clk 0:02:58.8]}
5... a5 {[%clk 0:02:44.5]} 6. Be2 {[%clk 0:02:57.9]} 6... d6 {[%clk 0:02:40.4]}
7. O-O {[%clk 0:02:57.8]} 7... e5 {[%clk 0:02:39.9]} 8. dxe5 {[%clk 0:02:43.5]}
8... dxe5 {[%clk 0:02:40.8]} 9. Qxd8 {[%clk 0:02:43.5]} 9... Rxd8 {[%clk
0:02:40.1]} 10. Bg5 {[%clk 0:02:44.4]} 10... Re8 {[%clk 0:02:36.1]} 11. Nd5
{[%clk 0:02:43.8]} 11... Nxd5 {[%clk 0:02:32.5]} 12. cxd5 {[%clk 0:02:44.7]}
12... c6 {[%clk 0:02:31.9]} 13. d6 {[%clk 0:02:39.1]} 13... Be6 {[%clk
0:02:27.7]} 14. Rfd1 {[%clk 0:02:36.6]} 14... Nd7 {[%clk 0:02:26.7]} 15. Nd2
{[%clk 0:02:31.4]} 15... f6 {[%clk 0:02:20.6]} 16. Be3 {[%clk 0:02:29.3]} 16...
Bf8 {[%clk 0:02:20.8]} 17. Nc4 {[%clk 0:02:23.8]} 17... Kg7 {[%clk 0:01:12.3]}
18. Nb6 {[%clk 0:02:19]} 18... Nxb6 {[%clk 0:01:12]} 19. Bxb6 {[%clk 0:02:19.9]}
19... Bd7 {[%clk 0:01:12.6]} 20. Rd2 {[%clk 0:02:09.8]} 20... a4 {[%clk
0:01:12.6]} 21. Rad1 {[%clk 0:02:04.4]} 21... h5 {[%clk 0:01:11.7]} 22. g3
{[%clk 0:02:03.2]} 22... Kh7 {[%clk 0:01:01.1]} 23. Kg2 {[%clk 0:02:02.9]} 23...
h4 {[%clk 0:00:55.5]} 24. Bc4 {[%clk 0:01:49.5]} 24... Bh6 {[%clk 0:00:54.8]}
25. Rd3 {[%clk 0:01:45.3]} 25... h3+ {[%clk 0:00:54.7]} 26. Kf3 {[%clk
0:01:40.1]} 26... Kg7 {[%clk 0:00:54.2]} 27. a3 {[%clk 0:01:19.8]} 27... f5
{[%clk 0:00:53.4]} 28. Re1 {[%clk 0:00:56.6]} 28... Rf8 {[%clk 0:00:44.1]} 29.
Rdd1 {[%clk 0:00:45]} 29... fxe4+ {[%clk 0:00:41.6]} 30. Kxe4 {[%clk 0:00:41.8]}
30... Rae8 {[%clk 0:00:40.2]} 31. Kd3 {[%clk 0:00:38.3]} 31... Bg4 {[%clk
0:00:30.5]} 32. Ra1 {[%clk 0:00:36]} 32... Rf3+ {[%clk 0:00:24.5]} 33. Kc2
{[%clk 0:00:34]} 33... Bf5+ {[%clk 0:00:23]} 34. Kd1 {[%clk 0:00:30.1]} 34... e4
{[%clk 0:00:18.7]} 35. Be3 {[%clk 0:00:25.1]} 35... Bxe3 {[%clk 0:00:15.5]} 36.
Rxe3 {[%clk 0:00:26]} 36... Rd8 {[%clk 0:00:16.1]} 37. Ke2 {[%clk 0:00:25.5]}
37... Rxe3+ {[%clk 0:00:13]} 38. Kxe3 {[%clk 0:00:25.2]} 38... Rxd6 {[%clk
0:00:13.9]} 39. Be2 {[%clk 0:00:25.1]} 39... Kf6 {[%clk 0:00:08.3]} 40. Rd1
{[%clk 0:00:25.4]} 40... Rxd1 {[%clk 0:00:07.4]} 41. Bxd1 {[%clk 0:00:26.3]}
41... Ke5 {[%clk 0:00:07.8]} 42. Bxa4 {[%clk 0:00:26.3]} 42... g5 {[%clk
0:00:05]} 43. Bd1 {[%clk 0:00:25.7]} 43... g4 {[%clk 0:00:04.4]} 44. b4 {[%clk
0:00:24.6]} 44... Be6 {[%clk 0:00:04.4]} 45. Bc2 {[%clk 0:00:24.5]} 45... Bf5
{[%clk 0:00:04.4]} 46. a4 {[%clk 0:00:24.4]} 46... Be6 {[%clk 0:00:03.4]} 47.
Bb1 {[%clk 0:00:24.1]} 47... Bf5 {[%clk 0:00:03.8]} 48. Bc2 {[%clk 0:00:24.4]}
48... Bg6 {[%clk 0:00:04.1]} 49. Bb3 {[%clk 0:00:23.3]} 49... Bf5 {[%clk
0:00:03.7]} 50. Bf7 {[%clk 0:00:23.5]} 50... Bd7 {[%clk 0:00:03.3]} 51. Bg6
{[%clk 0:00:20.8]} 51... c5 {[%clk 0:00:02.4]} 52. bxc5 {[%clk 0:00:20.2]} 52...
Bc6 {[%clk 0:00:03.1]} 53. a5 {[%clk 0:00:19.1]} 53... Bd5 {[%clk 0:00:02.9]}
54. Bh5 {[%clk 0:00:18.9]} 54... Be6 {[%clk 0:00:02.1]} 55. Be8 {[%clk
0:00:17.4]} 55... Bd5 {[%clk 0:00:02.4]} 56. Bh5 {[%clk 0:00:16]} 56... Be6
{[%clk 0:00:02.3]} 57. c6 {[%clk 0:00:16.3]} 57... bxc6 {[%clk 0:00:02.4]} 58.
a6 {[%clk 0:00:16.8]} 58... Bc8 {[%clk 0:00:01.2]} 59. a7 {[%clk 0:00:16.5]}
59... Bb7 {[%clk 0:00:01.9]} 60. Bxg4 {[%clk 0:00:17.1]} 60... c5 {[%clk
0:00:02.3]} 61. Bxh3 {[%clk 0:00:17.6]} 61... c4 {[%clk 0:00:02.9]} 62. Kd2
{[%clk 0:00:14.2]} 62... Kd4 {[%clk 0:00:03.1]} 63. Bf1 {[%clk 0:00:12.1]} 63...
c3+ {[%clk 0:00:03]} 64. Kc1 {[%clk 0:00:12]} 64... e3 {[%clk 0:00:01.9]} 65.
fxe3+ {[%clk 0:00:12.2]} 65... Kxe3 {[%clk 0:00:02.8]} 66. Ba6 {[%clk
0:00:11.4]} 66... Ba8 {[%clk 0:00:02.3]} 67. h4 {[%clk 0:00:11.9]} 67... Kd4
{[%clk 0:00:02]} 68. h5 {[%clk 0:00:11.6]} 68... Kc5 {[%clk 0:00:02.7]} 69. h6
{[%clk 0:00:11.2]} 1-0

[Event "Late-Titled-Tuesday-Blitz-April-02-2024"]
[Site "Chess.com"]
[Date "2024.04.02"]
[Round "3"]
[White "RichardShtivelband"]
[Black "Kotlyar_K"]
[Result "0-1"]
[WhiteElo "2283"]
[BlackElo "2579"]
[TimeControl "180+1"]
[EndTime "14:29:04 PDT"]
[Termination "Kotlyar_K won on time"]

1. d4 {[%clk 0:03:00]} 1... Nf6 {[%clk 0:02:57.5]} 2. c4 {[%clk 0:02:59.5]} 2...
g6 {[%clk 0:02:57.7]} 3. Nc3 {[%clk 0:02:58.8]} 3... d5 {[%clk 0:02:56.9]} 4.
cxd5 {[%clk 0:02:58.2]} 4... Nxd5 {[%clk 0:02:53.3]} 5. e4 {[%clk 0:02:57.9]}
5... Nxc3 {[%clk 0:02:52.5]} 6. bxc3 {[%clk 0:02:58.8]} 6... Bg7 {[%clk
0:02:51.4]} 7. Nf3 {[%clk 0:02:58.2]} 7... c5 {[%clk 0:02:48.1]} 8. Rb1 {[%clk
0:02:56.7]} 8... O-O {[%clk 0:02:25.3]} 9. Bc4 {[%clk 0:02:30.6]} 9... Nc6
{[%clk 0:02:16.3]} 10. Be3 {[%clk 0:02:28.1]} 10... cxd4 {[%clk 0:02:01]} 11.
cxd4 {[%clk 0:02:27.6]} 11... Bg4 {[%clk 0:02:01.4]} 12. Bd5 {[%clk 0:02:02.9]}
12... Qa5+ {[%clk 0:01:40.3]} 13. Qd2 {[%clk 0:01:22]} 13... Qxd2+ {[%clk
0:00:57.8]} 14. Nxd2 {[%clk 0:01:13.4]} 14... Nxd4 {[%clk 0:00:54.9]} 15. Bxd4
{[%clk 0:01:06.2]} 15... Bxd4 {[%clk 0:00:55.8]} 16. Rxb7 {[%clk 0:00:57.1]}
16... Rab8 {[%clk 0:00:49.4]} 17. f3 {[%clk 0:00:36.1]} 17... Rxb7 {[%clk
0:00:38]} 18. Bxb7 {[%clk 0:00:36]} 18... Rb8 {[%clk 0:00:37.6]} 19. Bd5 {[%clk
0:00:34.5]} 19... Bd7 {[%clk 0:00:32.9]} 20. Bb3 {[%clk 0:00:32.7]} 20... a5
{[%clk 0:00:31.4]} 21. Ke2 {[%clk 0:00:31.2]} 21... a4 {[%clk 0:00:31.1]} 22.
Bc4 {[%clk 0:00:31.3]} 22... Rb2 {[%clk 0:00:21.8]} 23. Kd3 {[%clk 0:00:30.6]}
23... Be5 {[%clk 0:00:19.3]} 24. Rb1 {[%clk 0:00:25.7]} 24... a3 {[%clk
0:00:18.5]} 25. Rxb2 {[%clk 0:00:24.5]} 25... Bxb2 {[%clk 0:00:11.9]} 26. Bb3
{[%clk 0:00:23.1]} 26... Be5 {[%clk 0:00:11.6]} 27. g3 {[%clk 0:00:22.9]} 27...
Bb5+ {[%clk 0:00:09.7]} 28. Ke3 {[%clk 0:00:22.7]} 28... Bb2 {[%clk 0:00:08.2]}
29. f4 {[%clk 0:00:22.6]} 29... Bc1 {[%clk 0:00:07.8]} 30. e5 {[%clk 0:00:22.3]}
30... Kg7 {[%clk 0:00:07]} 31. Bc2 {[%clk 0:00:20.5]} 31... f6 {[%clk
0:00:07.2]} 32. Bd3 {[%clk 0:00:20]} 32... Bc6 {[%clk 0:00:06.2]} 33. Ke2 {[%clk
0:00:19]} 33... Bd5 {[%clk 0:00:06.5]} 34. Bc4 {[%clk 0:00:18]} 34... Bc6 {[%clk
0:00:05.8]} 35. Nb3 {[%clk 0:00:16.7]} 35... Bb2 {[%clk 0:00:05.5]} 36. exf6+
{[%clk 0:00:16.3]} 36... Kxf6 {[%clk 0:00:06.3]} 37. Kd3 {[%clk 0:00:16.6]}
37... e5 {[%clk 0:00:06.7]} 38. fxe5+ {[%clk 0:00:15.9]} 38... Kxe5 {[%clk
0:00:07.6]} 39. Nc5 {[%clk 0:00:16.1]} 39... Kd6 {[%clk 0:00:06.2]} 40. Ne4+
{[%clk 0:00:15.3]} 40... Ke5 {[%clk 0:00:06.6]} 41. Nd2 {[%clk 0:00:14.6]} 41...
Kf6 {[%clk 0:00:05.2]} 42. Bb3 {[%clk 0:00:14.8]} 42... Bd7 {[%clk 0:00:04.8]}
43. Ne4+ {[%clk 0:00:14.6]} 43... Kg7 {[%clk 0:00:04.6]} 44. Bd5 {[%clk
0:00:13.2]} 44... Bf5 {[%clk 0:00:04.5]} 45. Ke2 {[%clk 0:00:13.4]} 45... h5
{[%clk 0:00:04.7]} 46. Nd6 {[%clk 0:00:13.3]} 46... Bg4+ {[%clk 0:00:04.3]} 47.
Kd3 {[%clk 0:00:12.6]} 47... Bd7 {[%clk 0:00:05.2]} 48. Be4 {[%clk 0:00:12.5]}
48... Kf6 {[%clk 0:00:04.7]} 49. Nc4 {[%clk 0:00:12.8]} 49... Bc1 {[%clk
0:00:04.8]} 50. Kc2 {[%clk 0:00:12.5]} 50... Bb2 {[%clk 0:00:04.2]} 51. Kb3
{[%clk 0:00:12.7]} 51... Bc1 {[%clk 0:00:03.8]} 52. Nxa3 {[%clk 0:00:12.7]}
52... Be3 {[%clk 0:00:04.3]} 53. Nc4 {[%clk 0:00:12.8]} 53... Bg1 {[%clk
0:00:05]} 54. h4 {[%clk 0:00:07.2]} 54... Bh2 {[%clk 0:00:05.5]} 55. Nd2 {[%clk
0:00:02.7]} 55... Bxg3 {[%clk 0:00:05.4]} 56. Nf3 {[%clk 0:00:03.3]} 56... Bg4
{[%clk 0:00:04.6]} 57. a4 {[%clk 0:00:03.5]} 57... Bxf3 {[%clk 0:00:05.2]} 58.
Bxf3 {[%clk 0:00:03.8]} 58... Bxh4 {[%clk 0:00:06.1]} 59. a5 {[%clk 0:00:04.4]}
59... Bf2 {[%clk 0:00:06.8]} 60. Kc4 {[%clk 0:00:04.8]} 60... Kf5 {[%clk
0:00:06.2]} 61. Kd3 {[%clk 0:00:05.3]} 61... Kf4 {[%clk 0:00:06.6]} 62. Ke2
{[%clk 0:00:04.3]} 62... Ba7 {[%clk 0:00:06.5]} 63. Bd5 {[%clk 0:00:02.9]} 63...
g5 {[%clk 0:00:06.8]} 64. Kf1 {[%clk 0:00:03.3]} 64... Kg3 {[%clk 0:00:05.7]}
65. Be6 {[%clk 0:00:02.2]} 65... g4 {[%clk 0:00:05.6]} 66. a6 {[%clk 0:00:01.8]}
66... h4 {[%clk 0:00:05.3]} 0-1